bitfinex/quotes_ETHUSD_20230105
["timestamp","ask_amount","ask_price","bid_price","bid_amount"]
[1672943601455,8.32108127,1251.8,1251.6,28.02382951]
[1672943602354,5.37263259,1251.8,1251.6,28.02382951]
[1672943603135,2.38905544,1251.7,1251.6,28.02382951]
[1672943603385,2.38905544,1251.7,1251.6,4.05514951]
[1672943603595,5.37263259,1251.7,1251.5,29.42221]
[1672943603807,31.83165385,1251.7,1251.5,9.0617]
[1672943604606,2.38905544,1251.6,1251.5,9.0617]
[1672943604807,10.37882544,1251.6,1251.5,9.0617]
[1672943605440,10.37882544,1251.6,1251.5,0.066]
[1672943605649,10.37882544,1251.6,1251.4,14.7509]
[1672943605650,2.38905544,1251.6,1251.4,22.80773]
[1672943605922,10.37885544,1251.6,1251.4,26.79687951]
[1672943606268,2.38905544,1251.6,1251.4,34.78792951]
[1672943606810,2.38905544,1251.6,1251.4,42.77897951]
[1672943607543,2.38905544,1251.6,1251.4,34.78792951]
[1672943607966,2.38905544,1251.6,1251.4,26.79687951]
[1672943608654,10.37887544,1251.6,1251.4,26.79687951]
[1672943608805,13.36245259,1251.6,1251.4,26.79693951]
[1672943609015,21.35217259,1251.6,1251.4,18.80604951]
[1672943609290,13.36240259,1251.6,1251.4,18.80604951]
[1672943609614,21.35217259,1251.6,1251.4,18.80604951]
[1672943609917,13.36240259,1251.6,1251.4,18.80604951]
[1672943610129,13.36240259,1251.6,1251.4,26.79704951]
[1672943610339,10.37882544,1251.6,1251.4,26.79704951]
[1672943610510,2.38905544,1251.6,1251.4,42.77914951]
[1672943611078,2.38905544,1251.6,1251.4,34.78809951]
[1672943615284,2.38905544,1251.6,1251.4,26.79704951]
[1672943615285,10.37902544,1251.6,1251.4,26.79704951]
[1672943616094,2.38905544,1251.6,1251.4,34.78809951]
[1672943616787,2.38905544,1251.6,1251.4,34.78435417]
[1672943616978,2.38905544,1251.6,1251.4,26.79330417]
[1672943616979,10.37888544,1251.6,1251.4,26.79330417]
[1672943617866,10.37888544,1251.6,1251.4,34.78435417]
[1672943618004,2.38905544,1251.6,1251.4,34.78435417]
[1672943618473,2.38905544,1251.6,1251.4,42.77540417]
[1672943620954,2.38905544,1251.6,1251.4,26.79330417]
[1672943621289,10.37891544,1251.6,1251.4,26.79330417]
[1672943621476,2.38905544,1251.6,1251.4,34.78435417]
[1672943621892,2.38905544,1251.6,1251.4,42.77540417]
[1672943622124,2.38905544,1251.6,1251.4,34.78435417]
[1672943622986,10.37900544,1251.6,1251.4,18.80230417]
[1672943623205,18.36895544,1251.6,1251.4,18.80230417]
[1672943623596,13.36258259,1251.6,1251.4,26.79312417]
[1672943623904,8.31339885,1251.6,1251.4,42.77522417]
[1672943624353,5.3298217,1251.6,1251.4,42.77522417]
[1672943624903,2.38905544,1251.6,1251.4,42.77522417]
[1672943625048,2.38905544,1251.6,1251.4,26.79312417]
[1672943625468,2.43905544,1251.6,1251.4,26.79312417]
[1672943625761,2.38905544,1251.6,1251.4,26.79312417]
[1672943626051,2.38905544,1251.6,1251.4,34.78417417]
[1672943626273,10.37897544,1251.6,1251.4,26.79312417]
[1672943627082,2.38905544,1251.6,1251.4,34.78417417]
[1672943627431,10.37890544,1251.6,1251.4,26.79312417]
[1672943627636,21.35233259,1251.6,1251.4,18.80230417]
[1672943627843,13.36248259,1251.6,1251.4,26.79323417]
[1672943627991,10.37890544,1251.6,1251.4,26.79323417]
[1672943628209,10.37890544,1251.6,1251.4,26.79326417]
[1672943628420,2.38905544,1251.6,1251.4,34.78431417]
[1672943628967,10.37901544,1251.6,1251.4,26.79326417]
[1672943629381,10.37901544,1251.6,1251.4,34.78431417]
[1672943629382,2.38905544,1251.6,1251.4,34.78431417]
[1672943629561,10.37882544,1251.6,1251.4,34.78431417]
[1672943629867,10.37882544,1251.6,1251.4,26.79332417]
[1672943629868,18.36859544,1251.6,1251.4,26.79332417]
[1672943630033,10.37882544,1251.6,1251.4,26.79332417]
[1672943630239,2.38905544,1251.6,1251.4,34.78437417]
[1672943631452,10.37885544,1251.6,1251.5,0.64934948]
[1672943632737,13.36243259,1251.6,1251.5,0.64934948]
[1672943632948,16.30314285,1251.6,1251.5,0.64934948]
[1672943633785,16.30311285,1251.6,1251.5,0.64934948]
[1672943634205,8.31334285,1251.6,1251.5,0.64934948]
[1672943634413,16.30311285,1251.6,1251.5,0.64934948]
[1672943635407,8.31334285,1251.6,1251.5,0.64934948]
[1672943636509,8.31334285,1251.6,1251.5,8.63975948]
[1672943636790,8.31334285,1251.6,1251.5,8.70575948]
[1672943637527,5.37263259,1251.6,1251.5,24.68657948]
[1672943637671,2.38905544,1251.6,1251.5,24.68657948]
[1672943638511,2.38905544,1251.6,1251.5,24.6840879]
[1672943639183,5.43863259,1251.7,1251.5,32.6744979]
[1672943639350,5.37263259,1251.7,1251.5,32.6744979]
[1672943639555,2.38905544,1251.7,1251.5,32.6744979]
[1672943639768,5.37263259,1251.7,1251.5,32.6744979]
[1672943640521,2.38905544,1251.6,1251.5,32.6744979]
[1672943642909,3.04957715,1251.7,1251.5,45.17067355]
[1672943642910,5.43863259,1251.7,1251.5,45.17067355]
[1672943643171,5.37263259,1251.7,1251.6,27.95845951]
[1672943643336,2.38905544,1251.7,1251.6,28.02445951]
[1672943644010,2.38905544,1251.7,1251.6,20.03468951]
[1672943644166,2.38905544,1251.7,1251.6,12.04491951]
[1672943644377,5.37263259,1251.7,1251.6,12.04491951]
[1672943644582,5.37263259,1251.7,1251.6,20.03468951]
[1672943645474,5.37263259,1251.7,1251.6,28.02445951]
[1672943646337,18.96183715,1251.7,1251.6,4.05514951]
[1672943646477,10.97270715,1251.7,1251.6,3.98914951]
[1672943646691,6.0436652,1251.7,1251.5,28.4380079]
[1672943646939,2.3958364,1251.6,1251.5,32.42715741]
[1672943647276,2.3958364,1251.6,1251.5,43.41756741]
[1672943650930,5.44541355,1251.7,1251.5,43.41756741]
[1672943651140,5.37941355,1251.7,1251.5,43.41756741]
[1672943652821,2.3958364,1251.6,1251.5,27.43688741]
[1672943653037,2.3958364,1251.6,1251.5,43.41770741]
[1672943654390,5.44541355,1251.7,1251.5,43.41770741]
[1672943654660,5.37941355,1251.7,1251.5,43.41770741]
[1672943659923,5.37941355,1251.7,1251.5,43.41569147]
[1672943664011,2.3958364,1251.7,1251.5,43.41569147]
[1672943664338,5.37941355,1251.7,1251.5,43.41569147]
[1672943665368,2.3958364,1251.7,1251.5,43.41569147]
[1672943667221,5.37941355,1251.7,1251.5,43.41569147]
[1672943669175,2.3958364,1251.6,1251.5,27.43487147]
[1672943672194,2.3958364,1251.6,1251.5,19.44479147]
[1672943674132,5.44541355,1251.7,1251.5,43.41602147]
[1672943674361,5.37941355,1251.7,1251.5,43.41602147]
[1672943676032,2.3958364,1251.6,1251.5,35.42561147]
[1672943676566,2.3958364,1251.6,1251.5,43.41602147]
[1672943677609,2.3958364,1251.6,1251.5,35.42561147]
[1672943680918,2.4458364,1251.6,1251.5,35.42561147]
[1672943681132,5.37941355,1251.6,1251.5,35.42561147]
[1672943681387,5.37941355,1251.6,1251.5,35.42281666]
[1672943682450,5.37941355,1251.6,1251.5,43.41322666]
[1672943685710,2.3958364,1251.6,1251.5,43.41322666]
[1672943685881,5.37941355,1251.6,1251.5,43.41322666]
[1672943686525,5.37653297,1251.6,1251.5,43.41322666]
[1672943689100,2.39295582,1251.6,1251.5,43.41322666]
[1672943689253,2.39295582,1251.6,1251.5,49.95360733]
[1672943691452,3.04957715,1251.7,1251.6,1.19012842]
[1672943691593,2.98357715,1251.7,1251.6,32.14858793]
[1672943691814,2.98357715,1251.7,1251.6,32.21458793]
[1672943692023,2.98357715,1251.7,1251.6,38.37211329]
[1672943692271,2.98357715,1251.7,1251.6,30.38234329]
[1672943692508,2.98357715,1251.7,1251.6,22.39257329]
[1672943693909,2.98357715,1251.7,1251.6,16.23504793]
[1672943695381,2.98357715,1251.7,1251.6,24.22481793]
[1672943695978,2.98357715,1251.7,1251.6,16.23504793]
[1672943698067,2.98357715,1251.7,1251.6,32.21458793]
[1672943702801,2.39666266,1251.7,1251.6,32.21458793]
[1672943702998,2.39666266,1251.7,1251.6,39.57371858]
[1672943703562,5.44623981,1251.8,1251.6,39.57371858]
[1672943703772,5.38023981,1251.8,1251.7,3.98914951]
[1672943704019,5.38023981,1251.8,1251.7,19.96740951]
[1672943704229,5.38023981,1251.8,1251.7,20.03340951]
[1672943704470,5.38023981,1251.8,1251.7,0.066]
[1672943704631,4.72704295,1251.8,1251.7,7.98913]
[1672943704842,4.72704295,1251.8,1251.7,8.05513]
[1672943705198,4.72704295,1251.8,1251.7,16.04426]
[1672943705199,5.37989438,1251.8,1251.7,16.04426]
[1672943705659,2.98357715,1251.8,1251.7,0.066]
[1672943705880,2.98357715,1251.8,1251.7,7.98913]
[1672943706216,5.37986234,1251.8,1251.7,16.04426]
[1672943706615,5.37986234,1251.8,1251.7,24.03339]
[1672943707877,5.37986234,1251.8,1251.7,24.03112434]
[1672943709663,5.37986234,1251.8,1251.7,16.04199434]
[1672943710452,5.37912108,1251.8,1251.7,16.04199434]
[1672943710665,5.37906827,1251.8,1251.7,24.03112434]
[1672943711773,2.98357715,1251.8,1251.7,8.05286434]
[1672943712018,5.28617268,1251.8,1251.7,8.05286434]
[1672943712691,2.30259553,1251.8,1251.7,8.05286434]
[1672943713036,5.297197,1251.8,1251.7,8.05286434]
[1672943713298,5.297197,1251.8,1251.7,16.04199434]
[1672943714357,2.30259553,1251.8,1251.7,16.04199434]
[1672943715244,2.30259553,1251.8,1251.7,0.066]
[1672943715462,21.87456953,1251.8,1251.6,1.19012842]
[1672943715668,2.99479526,1251.7,1251.6,1.19012842]
[1672943716006,5.48173174,1251.7,1251.6,1.19012842]
[1672943716347,7.87748987,1251.7,1251.6,9.17989842]
[1672943716683,7.87748987,1251.7,1251.6,9.24589842]
[1672943717271,7.87748987,1251.7,1251.6,17.23566842]
[1672943717449,5.39055339,1251.7,1251.6,17.23566842]
[1672943717793,5.39055339,1251.7,1251.6,9.24589842]
[1672943718560,5.39055339,1251.7,1251.6,17.23566842]
[1672943718770,5.39055339,1251.7,1251.6,25.22543842]
[1672943719602,2.39575813,1251.7,1251.6,25.22543842]
[1672943721046,2.99479526,1251.7,1251.6,25.22543842]
[1672943721241,5.39076355,1251.7,1251.6,25.22543842]
[1672943721385,5.39088198,1251.7,1251.6,25.22543842]
[1672943725612,2.39608672,1251.7,1251.6,25.22543842]
[1672943727249,5.39088198,1251.7,1251.6,25.22543842]
[1672943728090,5.39088198,1251.7,1251.6,29.21458793]
[1672943728247,2.39608672,1251.7,1251.6,37.20435793]
[1672943728703,2.39608672,1251.7,1251.6,43.87301644]
[1672943729035,5.45688198,1251.8,1251.6,43.87301644]
[1672943729249,2.99479526,1251.8,1251.7,3.98914951]
[1672943729461,2.99479526,1251.8,1251.7,19.96740951]
[1672943729777,2.99479526,1251.8,1251.7,4.05514951]
[1672943729921,2.99479526,1251.8,1251.7,3.98914951]
[1672943730613,10.53112913,1251.9,1251.7,7.57739315]
[1672943730763,2.47721913,1251.9,1251.8,3.98914951]
[1672943730978,2.47721913,1251.9,1251.8,27.95461951]
[1672943731205,2.47721913,1251.9,1251.8,28.02061951]
[1672943732430,0.08102416,1251.9,1251.8,28.02061951]
[1672943732645,0.68252416,1251.9,1251.8,38.45453344]
[1672943732959,0.08102416,1251.9,1251.8,38.45653344]
[1672943736093,0.08102416,1251.9,1251.8,38.91601417]
[1672943736264,0.30026393,1252.1,1251.9,3.5]
[1672943736471,0.23426393,1252.1,1252.0,7.21914951]
[1672943736686,0.23426393,1252.1,1252.0,31.47629024]
[1672943741518,0.23426393,1252.1,1252.0,39.46351024]
[1672943746990,0.23426393,1252.1,1252.0,31.47629024]
[1672943747203,0.23426393,1252.1,1252.0,39.43991086]
[1672943748775,0.23426393,1252.1,1252.0,31.45269086]
[1672943748986,0.23426393,1252.1,1252.0,39.43991086]
[1672943751890,0.23102521,1252.1,1252.0,39.43991086]
[1672943753034,0.23102521,1252.1,1252.0,31.45269086]
[1672943753194,0.23102521,1252.1,1252.0,39.43991086]
[1672943754359,0.23102521,1252.1,1252.0,31.45269086]
[1672943754577,0.23102521,1252.1,1252.0,39.43991086]
[1672943763775,0.23102521,1252.1,1252.0,16.04044]
[1672943763776,1.82702521,1252.1,1252.0,16.04044]
[1672943763971,1.82702521,1252.1,1252.0,0.066]
[1672943764175,20.79498047,1252.1,1251.9,0.08102415]
[1672943764386,32.18400128,1252.1,1251.9,0.08102415]
[1672943764612,24.19742128,1252.1,1251.9,0.08102415]
[1672943764841,8.22426128,1252.1,1251.9,8.06881415]
[1672943765177,8.22426128,1252.1,1251.9,24.11051415]
[1672943765178,0.05,1252.0,1251.9,24.11051415]
[1672943765391,0.23102521,1252.1,1251.9,24.11051415]
[1672943766270,0.23102521,1252.1,1252.0,1.27961948]
[1672943766533,0.23102521,1252.1,1252.0,25.24127948]
[1672943766746,0.23102521,1252.1,1252.0,25.30727948]
[1672943767143,0.23102521,1252.1,1252.0,9.33283948]
[1672943767489,3.22582047,1252.1,1252.0,9.33283948]
[1672943768650,0.23102521,1252.1,1252.0,25.30727948]
[1672943768869,3.22582047,1252.1,1252.0,25.30727948]
[1672943769467,3.22582047,1252.1,1252.0,17.32005948]
[1672943770459,3.22582047,1252.1,1252.0,25.30727948]
[1672943770823,0.23102521,1252.1,1252.0,25.30727948]
[1672943771362,0.23102521,1252.1,1252.0,33.29449948]
[1672943772087,0.23102521,1252.1,1252.0,30.59887388]
[1672943772293,0.23102521,1252.1,1252.0,38.58609388]
[1672943772614,0.23102521,1252.1,1252.0,30.59887388]
[1672943774872,0.23102521,1252.1,1252.0,30.5949199]
[1672943777670,0.23102521,1252.1,1252.0,38.5821399]
[1672943780303,0.23102521,1252.1,1252.0,30.5949199]
[1672943780511,0.23102521,1252.1,1252.0,38.5821399]
[1672943781455,0.23102521,1252.1,1252.0,30.5949199]
[1672943781929,0.23102521,1252.1,1252.0,38.5821399]
[1672943782474,0.23102521,1252.1,1252.0,30.5949199]
[1672943783032,0.23102521,1252.1,1252.0,38.5821399]
[1672943786347,0.23102521,1252.1,1252.0,30.5949199]
[1672943790245,0.23102521,1252.1,1252.0,38.5821399]
[1672943790859,0.22879437,1252.1,1252.0,38.5821399]
[1672943791547,0.22879437,1252.1,1252.0,30.5949199]
[1672943791764,0.22879437,1252.1,1252.0,29.29247501]
[1672943792183,0.22879437,1252.1,1252.0,5.33081501]
[1672943792518,0.22879437,1252.1,1252.0,13.31803501]
[1672943792956,0.22879437,1252.1,1252.0,21.30525501]
[1672943793140,3.22358963,1252.1,1252.0,21.30525501]
[1672943794707,3.22358963,1252.1,1252.0,13.31803501]
[1672943795196,3.22358963,1252.1,1252.0,5.33081501]
[1672943795352,6.40621936,1252.1,1252.0,1.3416655]
[1672943795584,6.40621936,1252.1,1252.0,1.2756655]
[1672943796178,6.40621936,1252.1,1252.0,9.2628855]
[1672943796502,3.22358963,1252.1,1252.0,29.29247501]
[1672943796967,3.22358963,1252.1,1252.0,9.3288855]
[1672943797289,3.22358963,1252.1,1252.0,1.3416655]
[1672943797437,3.22358963,1252.1,1252.0,1.2756655]
[1672943798173,0.22879437,1252.1,1252.0,1.2756655]
[1672943798384,3.2216955,1252.1,1252.0,1.2756655]
[1672943798648,11.2082755,1252.1,1252.0,1.2756655]
[1672943799025,11.20784038,1252.1,1252.0,1.2756655]
[1672943799236,27.43095468,1252.1,1252.0,1.2756655]
[1672943799452,31.02594868,1252.1,1252.0,1.2756655]
[1672943800500,11.45779468,1252.1,1252.0,1.2756655]
[1672943800767,31.02594868,1252.1,1252.0,1.2756655]
[1672943801146,27.43095468,1252.1,1252.0,1.2756655]
[1672943801354,32.21159854,1252.1,1252.0,1.2756655]
[1672943802037,28.03035468,1252.1,1252.0,1.2756655]
[1672943802390,31.62114748,1252.1,1252.0,1.2756655]
[1672943802773,36.62114748,1252.1,1252.0,1.2756655]
[1672943803901,44.60772748,1252.1,1252.0,1.2756655]
[1672943804147,41.01693468,1252.1,1252.0,1.2756655]
[1672943804747,44.60547961,1252.1,1252.0,1.2756655]
[1672943804936,36.61889961,1252.1,1252.0,1.2756655]
[1672943805146,44.60547961,1252.1,1252.0,1.2756655]
[1672943806088,33.03035468,1252.1,1252.0,1.2756655]
[1672943806321,37.21159854,1252.1,1252.0,1.2756655]
[1672943806602,33.03035468,1252.1,1252.0,1.2756655]
[1672943808537,36.61622462,1252.1,1252.0,1.2756655]
[1672943809569,44.60280462,1252.1,1252.0,1.2756655]
[1672943810963,36.61622462,1252.1,1252.0,1.2756655]
[1672943811129,44.60280462,1252.1,1252.0,1.2756655]
[1672943811342,41.01693468,1252.1,1252.0,1.2756655]
[1672943811547,48.67673779,1252.1,1252.0,1.2756655]
[1672943813378,48.67673779,1252.1,1252.0,1.27187519]
[1672943813810,44.49549393,1252.1,1252.0,1.27187519]
[1672943814030,39.61411767,1252.1,1252.0,1.27187519]
[1672943820369,47.60069767,1252.1,1252.0,1.27187519]
[1672943820580,39.61411767,1252.1,1252.0,1.27187519]
[1672943821481,47.60069767,1252.1,1252.0,1.27187519]
[1672943821706,39.61411767,1252.1,1252.0,1.27187519]
[1672943821883,47.60069767,1252.1,1252.0,1.27187519]
[1672943824336,39.61411767,1252.1,1252.0,1.27187519]
[1672943824510,36.03035468,1252.1,1252.0,1.27187519]
[1672943824886,39.61408024,1252.1,1252.0,1.27187519]
[1672943830093,47.60066024,1252.1,1252.0,1.27187519]
[1672943830677,51.7819041,1252.1,1252.0,1.27187519]
[1672943834449,48.19817854,1252.1,1252.0,1.27187519]
[1672943834808,44.01693468,1252.1,1252.0,1.27187519]
[1672943835470,44.01693468,1252.1,1252.0,5.19e-06]
[1672943835621,44.01693468,1252.1,1251.8,9.1267]
[1672943835826,3.5,1251.9,1251.8,9.1267]
[1672943836055,36.3014,1251.9,1251.8,0.066]
[1672943836352,36.3014,1251.9,1251.5,28.92127985]
[1672943837000,32.8014,1251.9,1251.5,36.91158985]
[1672943837240,32.8014,1251.9,1251.5,28.92127985]
[1672943837558,32.8034,1251.9,1251.5,28.91927985]
[1672943837779,32.8014,1251.9,1251.5,33.17232248]
[1672943839210,3.5,1251.8,1251.5,33.17232248]
[1672943839560,15.97826,1251.7,1251.5,28.92127985]
[1672943840087,23.96739,1251.7,1251.5,28.92127985]
[1672943840447,15.97826,1251.7,1251.5,28.92127985]
[1672943841428,23.96739,1251.7,1251.5,28.92127985]
[1672943842205,15.97826,1251.7,1251.5,28.92127985]
[1672943843533,23.96739,1251.7,1251.5,28.92127985]
[1672943845191,35.158714,1251.7,1251.5,28.92127985]
[1672943845407,27.169584,1251.7,1251.5,28.92127985]
[1672943845835,30.16453888,1251.7,1251.5,28.92127985]
[1672943846073,2.99495488,1251.6,1251.5,28.92127985]
[1672943846511,27.02834488,1251.7,1251.5,28.92127985]
[1672943846727,31.09107095,1251.7,1251.5,28.92127985]
[1672943847988,26.96426488,1251.6,1251.5,28.92127985]
[1672943848896,34.95403488,1251.6,1251.5,7.99737985]
[1672943849101,26.96426488,1251.6,1251.5,7.99737985]
[1672943849548,26.96066154,1251.6,1251.5,7.99737985]
[1672943849717,31.19026604,1251.6,1251.5,7.99737985]
[1672943850556,23.20049604,1251.6,1251.5,7.99737985]
[1672943852173,31.19026604,1251.6,1251.5,7.99737985]
[1672943854168,23.20049604,1251.6,1251.5,7.99737985]
[1672943854918,31.19026604,1251.6,1251.5,7.99737985]
[1672943857235,44.78263036,1251.6,1251.5,7.99737985]
[1672943857425,45.38233036,1251.6,1251.5,7.99737985]
[1672943858353,45.37883597,1251.6,1251.5,7.99737985]
[1672943865794,40.37883597,1251.6,1251.5,7.99737985]
[1672943866761,45.37883597,1251.6,1251.5,7.99737985]
[1672943867388,45.60883597,1251.6,1251.5,7.99737985]
[1672943868111,45.60883597,1251.6,1251.5,0.066]
[1672943868314,45.60883597,1251.6,1251.4,0.02446647]
[1672943868315,54.49839522,1251.6,1251.4,0.02446647]
[1672943868534,12.08802656,1251.5,1251.4,0.02446647]
[1672943868834,50.70830874,1251.5,1251.4,0.02446647]
[1672943869160,47.71998218,1251.5,1251.4,0.02446647]
[1672943869366,50.93874757,1251.5,1251.4,0.02446647]
[1672943869580,55.0189929,1251.5,1251.4,0.02446647]
[1672943871441,63.4299929,1251.5,1251.4,0.02446647]
[1672943871599,59.83954143,1251.5,1251.4,0.02446647]
[1672943871809,63.42599882,1251.5,1251.4,0.02446647]
[1672943872480,63.42599931,1251.5,1251.4,0.02446647]
[1672943873464,63.42599931,1251.5,1251.4,0.02079117]
[1672943878702,58.42599931,1251.5,1251.4,0.02079117]
[1672943879822,63.42599931,1251.5,1251.4,0.02079117]
[1672943883432,63.42799931,1251.5,1251.4,0.02079117]
[1672943883600,63.42599931,1251.5,1251.4,0.02079117]
[1672943887738,54.95703006,1251.5,1251.4,0.02079117]
[1672943887896,18.24510006,1251.5,1251.4,0.02079117]
[1672943888098,26.23551006,1251.5,1251.4,0.02079117]
[1672943888591,34.22592006,1251.5,1251.4,0.02079117]
[1672943889469,42.21633006,1251.5,1251.4,0.02079117]
[1672943890850,50.20674006,1251.5,1251.4,0.02079117]
[1672943895262,42.21633006,1251.5,1251.4,0.02079117]
[1672943895520,50.20674006,1251.5,1251.4,0.02079117]
[1672943895672,42.21633006,1251.5,1251.4,0.02079117]
[1672943896252,37.21633006,1251.5,1251.4,0.02079117]
[1672943896464,45.21386531,1251.5,1251.4,0.02079117]
[1672943896772,37.22345531,1251.5,1251.4,0.02079117]
[1672943896985,45.81321902,1251.5,1251.4,0.01840057]
[1672943897201,46.62028218,1251.5,1251.4,0.01840057]
[1672943897980,42.22345638,1251.5,1251.4,0.01840057]
[1672943898564,50.21386638,1251.5,1251.4,0.01840057]
[1672943898790,46.62028218,1251.5,1251.4,0.01840057]
[1672943900000,50.81321902,1251.5,1251.4,0.01840057]
[1672943900205,46.62028218,1251.5,1251.4,0.01840057]
[1672943902213,50.81321902,1251.5,1251.4,0.01840057]
[1672943908843,45.81321902,1251.5,1251.4,0.01840057]
[1672943909710,50.81321902,1251.5,1251.4,0.01840057]
[1672943910699,42.82280902,1251.5,1251.4,0.01840057]
[1672943911048,50.81321902,1251.5,1251.4,0.01840057]
[1672943911516,42.82280902,1251.5,1251.4,0.01840057]
[1672943911732,50.81321902,1251.5,1251.4,0.01840057]
[1672943912788,42.82280902,1251.5,1251.4,0.01840057]
[1672943915370,42.82280902,1251.5,1251.4,1.15369465]
[1672943919049,52.22377882,1251.5,1251.4,1.15369465]
[1672943919258,38.62987218,1251.5,1251.4,1.15369465]
[1672943919500,36.16827337,1251.5,1251.4,1.15013914]
[1672943921991,31.97123,1251.5,1251.4,1.15013914]
[1672943922635,39.96164,1251.5,1251.4,1.15013914]
[1672943923264,44.15896213,1251.5,1251.4,1.15013914]
[1672943923566,39.96164,1251.5,1251.4,1.15013914]
[1672943923949,45.70172511,1251.5,1251.4,1.15013914]
[1672943924129,37.71131511,1251.5,1251.4,1.15013914]
[1672943924659,59.29563175,1251.5,1251.4,1.15013914]
[1672943924818,51.30522175,1251.5,1251.4,1.15013914]
[1672943926874,46.35231511,1251.5,1251.4,1.15013914]
[1672943927695,54.34272511,1251.5,1251.4,1.15013914]
[1672943927915,46.35231511,1251.5,1251.4,1.15013914]
[1672943928532,54.34272511,1251.5,1251.4,1.15013914]
[1672943930183,59.29563175,1251.5,1251.4,1.15013914]
[1672943931084,54.29563175,1251.5,1251.4,1.15013914]
[1672943931816,49.34272511,1251.5,1251.4,1.15013914]
[1672943932049,54.34272511,1251.5,1251.4,1.15013914]
[1672943932194,59.29563175,1251.5,1251.4,1.15013914]
[1672943932405,67.28604175,1251.5,1251.4,1.15013914]
[1672943932635,62.81169436,1251.5,1251.2,0.02589652]
[1672943932862,4.95800735,1251.3,1251.2,0.02589652]
[1672943933067,43.07052809,1251.3,1251.2,0.02589652]
[1672943933759,38.11252074,1251.3,1251.2,0.02589652]
[1672943934393,42.30686112,1251.3,1251.2,0.02589652]
[1672943937326,41.70643231,1251.3,1251.2,0.02589652]
[1672943937538,42.30686112,1251.3,1251.2,0.02589652]
[1672943937850,38.11252074,1251.3,1251.2,0.02589652]
[1672943938325,41.70643208,1251.3,1251.2,0.02589652]
[1672943940361,38.11252074,1251.3,1251.2,0.02589652]
[1672943940645,33.71445899,1251.3,1251.2,0.02589652]
[1672943945043,28.71445899,1251.3,1251.2,0.02589652]
[1672943946197,33.71445899,1251.3,1251.2,0.02589652]
[1672943947998,34.31518112,1251.3,1251.2,0.02589652]
[1672943948805,30.12084074,1251.3,1251.2,0.02589652]
[1672943949363,34.31518112,1251.3,1251.2,0.02589652]
[1672943949583,42.30686112,1251.3,1251.2,0.02589652]
[1672943949725,34.31518112,1251.3,1251.2,0.02589652]
[1672943953157,30.12084074,1251.3,1251.2,0.02589652]
[1672943953323,33.71288694,1251.3,1251.2,0.02589652]
[1672943956522,33.71324199,1251.3,1251.2,0.02589652]
[1672943956948,33.71324199,1251.3,1251.2,0.0227015]
[1672943958318,25.72156199,1251.3,1251.2,0.0227015]
[1672943958623,9.73820199,1251.3,1251.2,0.0227015]
[1672943959024,8.59240125,1251.3,1251.2,0.0227015]
[1672943959576,16.58408125,1251.3,1251.2,0.0227015]
[1672943959722,8.59240125,1251.3,1251.2,0.0227015]
[1672943960096,24.57576125,1251.3,1251.2,0.0227015]
[1672943960317,8.59240125,1251.3,1251.2,0.0227015]
[1672943960462,16.58408125,1251.3,1251.2,0.0227015]
[1672943962618,8.59240125,1251.3,1251.2,0.0227015]
[1672943962878,16.58408125,1251.3,1251.2,0.0227015]
[1672943965670,24.57576125,1251.3,1251.2,0.0227015]
[1672943967080,32.56744125,1251.3,1251.2,0.0227015]
[1672943967291,35.04850252,1251.3,1251.2,0.0227015]
[1672943968764,30.04850252,1251.3,1251.2,0.0227015]
[1672943969781,35.04850252,1251.3,1251.2,0.0227015]
[1672943972446,31.45610127,1251.3,1251.2,0.0227015]
[1672943972658,15.47274127,1251.3,1251.2,0.0227015]
[1672943974314,19.66708165,1251.3,1251.2,0.0227015]
[1672943975119,35.65044165,1251.3,1251.2,0.0227015]
[1672943975750,27.65876165,1251.3,1251.2,0.0227015]
[1672943975958,15.47274127,1251.3,1251.2,0.0227015]
[1672943976165,10.47274127,1251.3,1251.2,0.0227015]
[1672943976802,15.47274127,1251.3,1251.2,0.0227015]
[1672943977014,15.47274127,1251.3,1251.2,0.02016579]
[1672943977937,19.06949644,1251.3,1251.2,0.02016579]
[1672943978143,16.58843517,1251.3,1251.2,0.02016579]
[1672943980000,12.99168,1251.3,1251.2,0.02016579]
[1672943980162,16.58832039,1251.3,1251.2,0.02016579]
[1672943981032,12.99168,1251.3,1251.2,0.02016579]
[1672943981252,33.16938038,1251.3,1251.2,0.02016579]
[1672943981565,38.62892615,1251.3,1251.2,0.02016579]
[1672943983401,30.63724615,1251.3,1251.2,0.02016579]
[1672943984034,8.59658578,1251.3,1251.2,2.38316579]
[1672943984504,16.58826578,1251.3,1251.2,2.38316579]
[1672943984895,12.99168,1251.3,1251.2,1.61616579]
[1672943985343,16.58826578,1251.3,1251.2,0.02016579]
[1672943985555,12.99168,1251.3,1251.2,0.02016579]
[1672943985789,24.57994507,1251.3,1251.2,0.02016579]
[1672943986095,20.98336,1251.3,1251.2,0.02016579]
[1672943987194,24.57990461,1251.3,1251.2,0.02016579]
[1672943988076,32.57158461,1251.3,1251.2,0.02016579]
[1672943990213,23.97504,1251.3,1251.2,0.02016579]
[1672943990778,28.16938038,1251.3,1251.2,0.02016579]
[1672943991196,33.16938038,1251.3,1251.2,0.02016579]
[1672943992007,25.17770038,1251.3,1251.2,0.02016579]
[1672943992517,17.18602038,1251.3,1251.2,0.02016579]
[1672943995609,21.00529215,1251.3,1251.2,0.02016579]
[1672943995841,36.98865215,1251.3,1251.2,0.02016579]
[1672943999347,28.99697215,1251.3,1251.2,0.02016579]
[1672943999559,29.59677215,1251.3,1251.2,0.02016579]
[1672943999952,45.58013215,1251.3,1251.2,0.02016579]
[1672944000196,37.58845215,1251.3,1251.2,0.02016579]
[1672944000409,37.58845215,1251.3,1251.2,0.0172298]
[1672944002341,32.58845215,1251.3,1251.2,0.0172298]
[1672944002702,24.59677215,1251.3,1251.2,0.0172298]
[1672944003488,29.59677215,1251.3,1251.2,0.0172298]
[1672944004281,29.59677215,1251.3,1251.2,8.0095498]
[1672944004282,8.81927177,1251.3,1251.2,8.0095498]
[1672944004496,8.59772491,1251.3,1251.2,8.1085498]
[1672944004721,3.59772491,1251.3,1251.2,0.1162298]
[1672944004912,3.59772491,1251.3,1251.2,0.0172298]
[1672944005372,3.59972491,1251.3,1251.2,0.0172298]
[1672944005587,3.59772491,1251.3,1251.2,0.0172298]
[1672944008257,19.58108491,1251.3,1251.2,0.0172298]
[1672944008812,3.59772491,1251.3,1251.2,0.0172298]
[1672944009016,11.49168,1251.3,1251.2,0.0172298]
[1672944009266,19.48336,1251.3,1251.2,0.0172298]
[1672944009497,7.99168,1251.3,1251.2,0.0172298]
[1672944009683,12.18602038,1251.3,1251.2,0.0172298]
[1672944009892,7.99168,1251.3,1251.2,0.0172298]
[1672944011141,11.58904459,1251.3,1251.2,0.0172298]
[1672944011770,3.59736459,1251.3,1251.2,0.0172298]
[1672944014380,3.59736459,1251.3,1251.2,16.0018698]
[1672944014603,3.59736459,1251.3,1251.2,8.1085498]
[1672944015250,3.59736459,1251.3,1251.2,0.1162298]
[1672944015439,11.58904459,1251.3,1251.2,0.0172298]
[1672944015882,3.59736459,1251.3,1251.2,18.3648698]
[1672944016091,3.59736459,1251.3,1251.2,26.4561898]